bitfinex/quotes_BTCUSD_20251201
["timestamp","ask_amount","ask_price","bid_price","bid_amount"]
[1764566763637,0.00283887,86030.0,86029.0,0.001]
[1764566763836,0.00283887,86030.0,86020.0,0.9584703]
[1764566763837,0.04645887,86030.0,86023.0,0.01162479]
[1764566764140,0.0002564,86028.0,86027.0,0.01162425]
[1764566764646,0.0002564,86028.0,86024.0,0.01162466]
[1764566765155,0.0002564,86028.0,86026.0,0.23248531]
[1764566766007,0.0022564,86028.0,86026.0,0.23248531]
[1764566766208,0.0002564,86028.0,86026.0,0.23248531]
[1764566766435,0.0022564,86028.0,86026.0,0.23248531]
[1764566767438,0.0022564,86028.0,86026.0,0.23348531]
[1764566768905,0.10956,86027.0,86026.0,0.001]
[1764566769265,0.05520806,86027.0,86026.0,0.001]
[1764566769784,0.23473906,86028.0,86026.0,0.001]
[1764566769785,0.0002564,86028.0,86026.0,0.001]
[1764566769983,0.0002564,86028.0,86024.0,0.2441159]
[1764566770212,0.001,86027.0,86024.0,0.2441159]
[1764566770356,0.001,86027.0,86026.0,0.001]
[1764566770781,0.0116252,86020.0,86016.0,0.03117212]
[1764566770957,0.07494,86017.0,86014.0,0.03117212]
[1764566771301,0.24411696,86011.0,86008.0,0.03117212]
[1764566771515,0.24411696,86011.0,86006.0,0.01162709]
[1764566771516,0.05524655,86010.0,86006.0,0.03117212]
[1764566771704,0.31909957,86010.0,86006.0,0.04279921]
[1764566771906,0.31909957,86010.0,86006.0,0.03117212]
[1764566772141,0.08656655,86010.0,86006.0,0.03117212]
[1764566772263,0.08656655,86010.0,86005.0,0.04279935]
[1764566772458,0.01162669,86009.0,86005.0,0.04279935]
[1764566772744,0.08656655,86010.0,86006.0,0.01162709]
[1764566772879,0.04294655,86010.0,86006.0,0.01162709]
[1764566773187,0.03432,86010.0,86007.0,0.01162696]
[1764566773396,0.03432,86010.0,86009.0,0.09899664]
[1764566773397,0.003,86010.0,86009.0,0.09899664]
[1764566773639,0.01162466,86024.0,86009.0,0.09899664]
[1764566773640,0.23249373,86024.0,86018.0,0.01162547]
[1764566773842,0.01162479,86023.0,86015.0,0.01162587]
[1764566773980,0.01162506,86021.0,86015.0,0.01162587]
[1764566774352,0.24412668,86021.0,86015.0,0.01162587]
[1764566774559,0.01162547,86018.0,86014.0,0.68534979]
[1764566774804,0.0116252,86020.0,86015.0,0.24414345]
[1764566774998,0.01162506,86021.0,86016.0,0.01162574]
[1764566775548,0.01162506,86021.0,86017.0,0.24413777]
[1764566775749,0.003,86018.0,86017.0,0.24413777]
[1764566775962,0.01162493,86022.0,86018.0,0.01162547]
[1764566776577,0.004,86021.0,86019.0,0.23250677]
[1764566776766,0.24412288,86023.0,86015.0,0.01162587]
[1764566776940,0.003,86018.0,86016.0,0.01162574]
[1764566777679,0.003,86018.0,86016.0,0.24413886]
[1764566778043,0.01162506,86021.0,86017.0,0.0116256]
[1764566778224,0.24412822,86021.0,86017.0,0.0116256]
[1764566778426,0.02859,86020.0,86017.0,0.0116256]
[1764566778852,0.0402152,86020.0,86016.0,0.01162574]
[1764566779055,0.003,86018.0,86017.0,0.24413777]
[1764566779219,0.0402152,86020.0,86017.0,0.24413777]
[1764566779621,0.0432152,86020.0,86017.0,0.24413777]
[1764566779898,0.0402152,86020.0,86017.0,0.24413777]
[1764566780444,0.0405,86018.0,86013.0,0.24414813]
[1764566780649,0.0405,86017.0,86015.0,0.01162587]
[1764566780851,0.0405,86017.0,86015.0,0.24414121]
[1764566781050,0.0402152,86020.0,86016.0,0.01162574]
[1764566781540,0.05180326,86020.0,86016.0,0.01162574]
[1764566781740,0.003,86017.0,86016.0,0.01162574]
[1764566782162,0.05180326,86020.0,86017.0,0.0116256]
[1764566782396,0.05480326,86020.0,86017.0,0.0116256]
[1764566782599,0.05212547,86018.0,86013.0,0.2441484]
[1764566782800,0.0405,86017.0,86014.0,0.24414425]
[1764566783162,0.0405,86017.0,86010.0,0.01162655]
[1764566783163,0.05212587,86015.0,86010.0,0.01162655]
[1764566783298,0.0146256,86017.0,86010.0,0.01162655]
[1764566783299,0.003,86017.0,86014.0,0.01162601]
[1764566783502,0.003,86017.0,86015.0,0.23251758]
[1764566784093,0.01162533,86019.0,86016.0,0.01162574]
[1764566784329,0.02859,86020.0,86017.0,0.0116256]
[1764566784495,0.03159,86020.0,86017.0,0.24413581]
[1764566784706,0.01162533,86019.0,86016.0,0.01162574]
[1764566785093,0.004,86017.0,86016.0,0.01162574]
[1764566785297,0.01162533,86019.0,86016.0,0.01162574]
[1764566786244,0.01162466,86024.0,86019.0,0.01162533]
[1764566786446,0.01162466,86024.0,86019.0,0.24412974]
[1764566786645,0.01162493,86022.0,86017.0,0.2441357]
[1764566786946,0.0116252,86020.0,86015.0,0.24414075]
[1764566787101,0.244131,86020.0,86016.0,0.01162574]
[1764566787296,0.0116252,86020.0,86016.0,0.01162574]
[1764566787525,0.004,86017.0,86016.0,0.01162574]
[1764566788164,0.24412844,86021.0,86016.0,0.24413888]
[1764566788524,0.003,86020.0,86017.0,0.0116256]
[1764566788729,0.01162479,86023.0,86017.0,0.0116256]
[1764566788950,0.01162506,86021.0,86017.0,0.24413632]
[1764566789149,0.24412816,86021.0,86017.0,0.0116256]
[1764566789351,0.01162533,86019.0,86015.0,0.24414328]
[1764566789954,0.01162533,86019.0,86016.0,0.01162574]
[1764566790763,0.003,86020.0,86016.0,0.24413907]
[1764566790965,0.01162506,86021.0,86017.0,0.0116256]
[1764566791190,0.24412795,86021.0,86017.0,0.0116256]
[1764566791482,0.003,86019.0,86015.0,0.24414184]
[1764566791651,0.23250852,86019.0,86015.0,0.01162587]
[1764566792126,0.01162547,86018.0,86014.0,0.04293694]
[1764566792338,0.24413654,86018.0,86014.0,0.04293694]
[1764566792671,0.0116252,86020.0,86014.0,0.04293694]
[1764566792878,0.2441339,86019.0,86015.0,0.01162587]
[1764566793057,0.2441339,86019.0,86015.0,0.24414316]
[1764566793259,0.2441339,86019.0,86015.0,0.27545409]
[1764566793586,0.27145488,86016.0,86015.0,0.03131093]
[1764566793768,0.24414345,86015.0,86012.0,0.03131093]
[1764566793966,0.01162466,86024.0,86015.0,0.23251554]
[1764566794169,0.01162493,86022.0,86017.0,0.0116256]
[1764566794393,0.003,86019.0,86017.0,0.24413777]
[1764566794569,0.003,86019.0,86017.0,0.0116256]
[1764566794794,0.01162506,86021.0,86017.0,0.24413619]
[1764566794995,0.24412926,86020.0,86017.0,0.0116256]
[1764566795307,0.01162547,86018.0,86015.0,0.03131093]
[1764566795518,0.01162574,86016.0,86012.0,0.04293721]
[1764566795710,0.01162547,86018.0,86013.0,0.01162614]
[1764566795916,0.0116256,86017.0,86014.0,0.01162601]
[1764566796118,0.24413974,86017.0,86013.0,0.04293707]
[1764566796280,0.24413974,86017.0,86013.0,0.03131093]
[1764566796684,0.01162574,86016.0,86013.0,0.03131093]
[1764566796885,0.24414256,86016.0,86013.0,0.03131093]
[1764566797083,0.23252028,86014.0,86013.0,0.03131093]
[1764566797312,0.24414256,86016.0,86013.0,0.03131093]
[1764566797509,0.23251957,86015.0,86013.0,0.03131093]
[1764566798290,0.23251957,86015.0,86014.0,0.03131093]
[1764566799226,0.24414785,86014.0,86011.0,0.01162641]
[1764566799474,0.002,86015.0,86012.0,0.24414978]
[1764566799675,0.01162601,86014.0,86011.0,0.04155632]
[1764566800151,0.2441482,86014.0,86011.0,0.04155632]
[1764566800956,0.0536148,86014.0,86010.0,0.24415597]
[1764566801155,0.0556148,86014.0,86010.0,0.24415597]
[1764566801356,0.0536148,86014.0,86010.0,0.24415597]
[1764566801618,0.0116252,86020.0,86013.0,0.01162614]
[1764566801860,0.0116252,86020.0,86010.0,0.01162655]
[1764566801861,0.24414299,86016.0,86014.0,0.0314115]
[1764566802580,0.10038,86015.0,86014.0,0.0314115]
[1764566803933,0.13123,86015.0,86014.0,0.0314115]
[1764566804362,0.13423,86015.0,86014.0,0.0314115]
[1764566805318,0.13123,86015.0,86014.0,0.0314115]
[1764566805599,0.06979,86015.0,86014.0,0.0314115]
[1764566805944,0.03085,86015.0,86014.0,0.0314115]
[1764566806562,0.03385,86015.0,86014.0,0.0314115]
[1764566808106,0.003,86015.0,86014.0,0.0314115]
[1764566808469,0.03439,86015.0,86014.0,0.0314115]
[1764566809108,0.07569,86015.0,86014.0,0.0314115]
[1764566809371,0.13447,86015.0,86014.0,0.0314115]
[1764566809756,0.003,86015.0,86014.0,0.0314115]
[1764566810902,0.003,86015.0,86014.0,0.23252028]
[1764566811181,0.03439,86015.0,86014.0,0.23252028]
[1764566812407,0.003,86015.0,86014.0,0.23252028]
[1764566812699,0.003,86015.0,86014.0,0.2740766]
[1764566812901,0.003,86015.0,86014.0,0.23252028]
[1764566813281,0.03139,86022.0,86018.0,0.24413408]
[1764566813482,0.03139,86022.0,86020.0,0.03141865]
[1764566814802,0.03539,86022.0,86020.0,0.03141865]
[1764566815468,0.03539,86022.0,86020.0,0.26392125]
[1764566816173,0.03539,86022.0,86021.0,0.03141865]
[1764566816583,0.004,86022.0,86021.0,0.03141865]
[1764566816952,0.004,86022.0,86020.0,0.2325026]
[1764566816953,0.004,86022.0,86020.0,0.27439414]
[1764566817138,0.0002564,86028.0,86019.0,0.24413058]
[1764566817139,0.0002564,86028.0,86027.0,0.23248515]
[1764566817360,0.0002564,86028.0,86027.0,0.29498132]
[1764566817574,0.0002564,86028.0,86027.0,0.23248515]
[1764566817776,0.0002564,86028.0,86027.0,0.29498132]
[1764566818284,0.0002564,86028.0,86027.0,0.23248515]
[1764566818695,0.0002564,86028.0,86027.0,0.23348515]
[1764566819256,0.0002564,86028.0,86027.0,0.61900814]
[1764566819453,0.0002564,86028.0,86027.0,0.70233637]
[1764566819657,0.00051837,86030.0,86029.0,0.61800273]
[1764566821098,0.00051837,86030.0,86029.0,0.62000273]
[1764566821433,0.0004,86040.0,86039.0,0.23245272]
[1764566821574,0.0004,86040.0,86039.0,0.23981272]
[1764566822197,0.0004,86040.0,86039.0,0.30239777]
[1764566822398,0.0004,86040.0,86039.0,0.23981272]
[1764566822672,0.0004,86040.0,86039.0,0.23467777]
[1764566822859,0.0004,86040.0,86039.0,0.17209272]
[1764566823663,0.0004,86040.0,86039.0,0.17309272]
[1764566823832,0.0004,86040.0,86039.0,0.16573272]
[1764566824248,0.0004,86040.0,86039.0,0.17309272]
[1764566825477,0.0004,86040.0,86039.0,0.16573272]
[1764566825685,0.0004,86040.0,86039.0,0.17309272]
[1764566825686,0.00078454,86040.0,86039.0,0.17309272]
[1764566825899,0.00078454,86040.0,86039.0,0.20434096]
[1764566826316,0.00078454,86040.0,86039.0,0.17309272]
[1764566826550,0.00078454,86040.0,86039.0,0.17209272]
[1764566826908,0.00078454,86040.0,86039.0,0.17309272]
[1764566827116,0.00178454,86040.0,86039.0,0.16573272]
[1764566827412,0.00178454,86040.0,86039.0,0.17735961]
[1764566827664,0.00178454,86040.0,86039.0,0.16573272]
[1764566827865,0.04308454,86040.0,86039.0,0.001]
[1764566828070,0.00178454,86040.0,86039.0,0.001]
[1764566829066,0.10086454,86040.0,86039.0,0.001]
[1764566829242,0.0556726,86040.0,86039.0,0.001]
[1764566829656,0.04408454,86040.0,86039.0,0.001]
[1764566830045,0.04208454,86040.0,86038.0,0.23245342]
[1764566830245,0.0417,86040.0,86038.0,0.23245342]
[1764566830687,0.13147,86039.0,86034.0,0.01162331]
[1764566830977,0.03139,86039.0,86036.0,0.01162304]
[1764566831180,0.03139,86039.0,86036.0,0.24408382]
[1764566831499,0.03139,86039.0,86037.0,0.23245603]
[1764566832062,0.03139,86039.0,86036.0,0.24408382]
[1764566832267,0.04297806,86039.0,86036.0,0.01162304]
[1764566832473,0.23246083,86036.0,86025.0,0.01162452]
[1764566832677,0.28538897,86035.0,86029.0,0.24410142]
[1764566833091,0.28538897,86035.0,86029.0,0.01162398]
[1764566833321,0.01162344,86033.0,86030.0,0.01162385]
[1764566833472,0.01162331,86034.0,86030.0,0.01162385]
[1764566833673,0.24408897,86035.0,86032.0,0.01162358]
[1764566833904,0.01362317,86035.0,86032.0,0.01162358]
[1764566834106,0.0413,86033.0,86030.0,0.2440991]
[1764566834463,0.08431371,86031.0,86021.0,0.24412461]
[1764566834610,0.02321204,86029.0,86025.0,0.01162452]
[1764566834781,0.01158806,86028.0,86025.0,0.00011837]
[1764566834984,0.01158806,86028.0,86025.0,0.24423315]
[1764566835404,0.01162398,86029.0,86026.0,0.01162439]
[1764566835611,0.02321204,86029.0,86026.0,0.01162439]
[1764566836355,0.03139,86031.0,86028.0,0.01162412]
[1764566836581,0.01158806,86030.0,86028.0,0.01162412]
[1764566836772,0.003,86029.0,86025.0,0.00011837]
[1764566836967,0.01462398,86029.0,86025.0,0.00011837]
[1764566837151,0.02621204,86029.0,86025.0,0.24423318]
[1764566837553,0.03706,86026.0,86025.0,0.00011837]
[1764566838154,0.01158806,86026.0,86025.0,0.00011837]
[1764566838342,0.01158806,86029.0,86026.0,0.24411224]
[1764566838948,0.01458806,86029.0,86026.0,0.24411224]
[1764566839094,0.01158806,86029.0,86027.0,0.2324831]
[1764566839620,0.01458806,86029.0,86027.0,0.2324831]
[1764566839782,0.01458806,86029.0,86026.0,0.24411224]
[1764566840331,0.01158806,86029.0,86026.0,0.24411224]
[1764566840532,0.01458806,86029.0,86026.0,0.01162439]
[1764566840741,0.01158806,86028.0,86026.0,0.24411055]
[1764566841594,0.01158806,86027.0,86026.0,0.01162439]
[1764566841997,0.01162398,86029.0,86026.0,0.01162439]
[1764566842211,0.01158806,86028.0,86026.0,0.24410998]
[1764566842749,0.001,86027.0,86026.0,0.24410998]
[1764566842987,0.01158806,86028.0,86026.0,0.24410998]
[1764566843353,0.01258806,86028.0,86026.0,0.24410998]
[1764566843556,0.03706,86027.0,86025.0,0.00011837]
[1764566843908,0.04864806,86026.0,86025.0,0.23260716]
[1764566844128,0.01158806,86027.0,86025.0,0.24423168]
[1764566844337,0.01158806,86028.0,86026.0,0.01162439]
[1764566844704,0.01158806,86028.0,86027.0,0.01162425]
[1764566845064,0.04301371,86031.0,86028.0,0.01162412]
[1764566846550,0.04501371,86031.0,86028.0,0.01162412]
[1764566846727,0.27748931,86031.0,86027.0,0.01162425]
[1764566846930,0.01162385,86030.0,86027.0,0.01162425]
[1764566848793,0.01262385,86030.0,86027.0,0.01162425]
[1764566849006,0.24510262,86030.0,86026.0,0.24411064]
[1764566849156,0.24510262,86030.0,86026.0,0.01162439]
[1764566849359,0.01162398,86029.0,86026.0,0.01162439]
[1764566850608,0.24410552,86029.0,86025.0,0.00011837]
[1764566850812,0.01162412,86028.0,86025.0,0.00011837]
[1764566851761,0.06802412,86028.0,86025.0,0.00011837]
[1764566852072,0.02983,86027.0,86025.0,0.00011837]
[1764566852189,0.26231752,86027.0,86025.0,0.00011837]
[1764566852393,0.09432,86026.0,86025.0,0.00011837]
[1764566853418,0.03083,86027.0,86025.0,0.00011837]
[1764566853829,0.03083,86027.0,86025.0,0.23260683]
[1764566854452,0.001,86027.0,86025.0,0.23260683]
[1764566854659,0.03139,86031.0,86027.0,0.01162425]
[1764566855409,0.03139,86031.0,86028.0,0.01162412]
[1764566855580,0.03139,86031.0,86029.0,0.2324783]
[1764566855778,0.03139,86031.0,86028.0,0.01162412]
[1764566856172,0.03339,86031.0,86028.0,0.01162412]
[1764566856372,0.04301371,86031.0,86028.0,0.01162412]
[1764566857783,0.04501371,86031.0,86028.0,0.01162412]
[1764566857969,0.04301371,86031.0,86028.0,0.01162412]
[1764566858175,0.04301371,86031.0,86028.0,0.03126893]
[1764566858397,0.10141371,86031.0,86028.0,0.03126893]
[1764566859717,0.04501371,86031.0,86028.0,0.03126893]
[1764566859876,0.23247974,86029.0,86028.0,0.03126893]
[1764566860076,0.03792,86029.0,86028.0,0.03126893]
[1764566860300,0.03339,86031.0,86027.0,0.01162425]
[1764566860479,0.03339,86031.0,86030.0,0.03139203]
[1764566861063,0.03139,86031.0,86029.0,0.26386907]
[1764566861264,0.03139,86031.0,86030.0,0.03139203]
[1764566861459,0.03339,86031.0,86030.0,0.03139203]
[1764566861659,0.03139,86031.0,86030.0,0.03139203]
[1764566861965,0.03339,86031.0,86030.0,0.03139203]
[1764566862166,0.03339,86031.0,86029.0,0.23247704]
[1764566862566,0.04497806,86031.0,86029.0,0.23247704]
[1764566862767,0.10137806,86031.0,86029.0,0.23247704]
[1764566862988,0.03792,86030.0,86026.0,0.04169548]
[1764566863193,0.04950806,86027.0,86026.0,0.27418333]
[1764566863398,0.03792,86027.0,86026.0,0.27418333]
[1764566864209,0.03339,86031.0,86029.0,0.23247974]
[1764566864846,0.03139,86031.0,86029.0,0.23247974]
[1764566865845,0.002,86031.0,86029.0,0.23247974]
[1764566872328,0.002,86031.0,86029.0,0.27436295]
[1764566873042,0.0004,86050.0,86049.0,0.23242571]
[1764566873297,0.0004,86050.0,86049.0,0.55542571]
[1764566873488,0.0004,86050.0,86049.0,0.23242571]
[1764566873682,0.0004,86050.0,86049.0,0.23978571]
[1764566874397,0.0004,86050.0,86049.0,0.24178571]
[1764566874598,0.0004,86050.0,86049.0,0.24078571]
[1764566874893,0.0004,86050.0,86049.0,0.24178571]
[1764566877172,0.0004,86050.0,86049.0,0.28347369]
[1764566878156,0.0004,86050.0,86049.0,0.27611369]
[1764566878319,0.0004,86050.0,86049.0,0.24178571]
[1764566879804,0.06489,86050.0,86049.0,0.002]
[1764566880685,0.06489,86050.0,86048.0,0.23242751]
[1764566881630,0.06489,86050.0,86048.0,0.23242841]
[1764566881833,0.03691,86049.0,86041.0,0.24406802]
[1764566882052,0.01158806,86046.0,86042.0,0.01162223]
[1764566882251,0.01158806,86046.0,86040.0,0.0116225]
[1764566882252,0.01162182,86045.0,86040.0,0.0116225]
[1764566882460,0.01162142,86048.0,86042.0,0.23244462]
[1764566882655,0.01162142,86048.0,86042.0,0.24406685]
[1764566882813,0.01162142,86048.0,86043.0,0.01162209]
[1764566883020,0.2440524,86048.0,86043.0,0.01162209]
[1764566883243,0.2440524,86048.0,86044.0,0.01162196]
[1764566883421,0.01158806,86047.0,86043.0,0.01162209]
[1764566883615,0.01158806,86047.0,86044.0,0.01162196]
[1764566883897,0.01162209,86043.0,86038.0,0.01162277]
[1764566884065,0.01158806,86042.0,86039.0,0.01162263]
[1764566884281,0.01162115,86050.0,86043.0,0.01162209]
[1764566884428,0.02320948,86048.0,86044.0,0.01162196]
[1764566884635,0.02320948,86048.0,86044.0,0.24406052]
[1764566884636,0.01162142,86048.0,86044.0,0.24406052]
[1764566884844,0.01158806,86048.0,86044.0,0.01162196]
[1764566885166,0.03920128,86049.0,86046.0,0.01162169]
[1764566885167,0.02758,86049.0,86046.0,0.01162169]
[1764566885336,0.03916806,86049.0,86047.0,0.23242842]
[1764566885755,0.01158806,86049.0,86047.0,0.23242842]
[1764566885957,0.01162034,86056.0,86051.0,0.24403878]
[1764566886185,0.01162047,86055.0,86050.0,0.01162115]
[1764566886337,0.01162047,86055.0,86051.0,0.01162101]
[1764566886538,0.01162047,86055.0,86051.0,0.24404117]
[1764566886981,0.01162047,86055.0,86052.0,0.01162088]
[1764566887188,0.01162061,86054.0,86049.0,0.01162128]
[1764566887354,0.02320867,86054.0,86050.0,0.01162115]
[1764566887549,4.585e-05,86055.0,86051.0,0.01162101]
[1764566887800,4.585e-05,86055.0,86052.0,0.24403848]
[1764566888253,4.585e-05,86055.0,86053.0,0.23241276]
[1764566889201,4.585e-05,86055.0,86052.0,0.24403848]
[1764566889408,4.585e-05,86055.0,86054.0,0.2324122]
[1764566889804,4.585e-05,86055.0,86052.0,0.24403848]
[1764566890048,4.585e-05,86055.0,86053.0,0.23241312]
[1764566894310,4.585e-05,86055.0,86052.0,0.24403848]
[1764566894311,4.585e-05,86055.0,86052.0,0.01162088]
[1764566894932,0.01224262,86055.0,86052.0,0.01162088]
[1764566895255,4.585e-05,86055.0,86052.0,0.24403583]
[1764566895778,0.01158806,86056.0,86053.0,0.01162074]
[1764566895997,0.0004,86060.0,86057.0,0.24402172]
[1764566896200,0.0004,86060.0,86059.0,0.00937]
[1764566896397,0.0004,86060.0,86059.0,0.04851]
[1764566896908,0.0004,86060.0,86059.0,0.00937]
[1764566897150,0.0004,86060.0,86057.0,0.0116202]
[1764566897330,0.0247922,86060.0,86057.0,0.0116202]
[1764566897527,0.25718959,86060.0,86056.0,0.01162034]
[1764566897729,0.24402054,86059.0,86054.0,0.01162061]
[1764566898321,0.01162007,86058.0,86054.0,0.01162061]
[1764566899358,0.23240311,86058.0,86053.0,0.025]
[1764566899589,0.0116202,86057.0,86053.0,0.03662074]
[1764566899796,0.01158807,86056.0,86053.0,0.03662074]
[1764566900000,0.0116202,86057.0,86053.0,0.03662074]
[1764566900626,0.02320814,86058.0,86054.0,0.24403115]
[1764566900870,0.02320827,86057.0,86054.0,0.01162061]
[1764566901073,0.00060871,86055.0,86054.0,0.01162061]
[1764566902625,0.00060871,86055.0,86054.0,0.10313061]
[1764566904234,0.00060871,86055.0,86054.0,0.12637183]
[1764566904440,0.00060871,86055.0,86054.0,0.1576691]
[1764566904842,0.00060871,86055.0,86054.0,0.12637183]
[1764566905595,0.00060871,86055.0,86054.0,0.12737183]
[1764566907014,0.00060871,86055.0,86054.0,0.49205981]
[1764566907195,0.00060871,86055.0,86054.0,0.42713061]
[1764566907604,0.00060871,86055.0,86054.0,0.42613061]
[1764566907814,0.00060871,86055.0,86054.0,0.48874554]
[1764566908114,0.00060871,86055.0,86054.0,0.43013061]
[1764566908332,0.00060871,86055.0,86054.0,0.42713061]
[1764566908540,0.00060871,86055.0,86054.0,0.42613061]
[1764566908736,0.00060871,86055.0,86054.0,0.43013061]
[1764566908905,0.00060871,86055.0,86054.0,0.43113061]
[1764566910835,0.00060871,86055.0,86054.0,0.43849061]
[1764566911764,0.00060871,86055.0,86054.0,0.50112698]
[1764566912095,0.00060871,86055.0,86054.0,0.43849061]
[1764566912296,0.00060871,86055.0,86054.0,0.43349061]
[1764566912496,0.00060871,86055.0,86054.0,0.43449061]
[1764566912710,0.00060871,86055.0,86054.0,0.5000136]
[1764566913883,0.00060871,86055.0,86054.0,0.4960136]
[1764566914078,0.00060871,86055.0,86054.0,0.4970136]
[1764566914644,0.00060871,86055.0,86054.0,0.5000136]
[1764566915004,0.00060871,86055.0,86054.0,0.5010136]
[1764566924415,0.00060871,86055.0,86054.0,0.4936536]
[1764566924617,0.00060871,86055.0,86054.0,0.5010136]
[1764566924966,0.00060871,86055.0,86054.0,0.4936536]
[1764566925177,0.00060871,86055.0,86054.0,0.5010136]
[1764566927530,0.00060871,86055.0,86054.0,0.43849061]
[1764566928242,0.00060871,86055.0,86054.0,0.43113061]
[1764566928430,0.00060871,86055.0,86054.0,0.43849061]
[1764566928961,0.00060871,86055.0,86054.0,0.43749061]
[1764566929461,0.00060871,86055.0,86054.0,0.43849061]
[1764566929887,0.00060871,86055.0,86054.0,0.43449061]
[1764566930214,0.00060871,86055.0,86054.0,0.43749061]
[1764566934523,0.00060871,86055.0,86054.0,0.5000136]
[1764566935991,0.0004,86080.0,86074.0,0.01161791]
[1764566936199,0.0004,86080.0,86079.0,0.2823547]
[1764566936591,0.0004,86080.0,86079.0,0.3386647]
[1764566937331,0.0004,86080.0,86079.0,0.3396647]
[1764566938197,0.0004,86080.0,86079.0,0.38149718]
[1764566938614,0.00079446,86080.0,86079.0,0.38149718]
[1764566938813,0.00079446,86080.0,86079.0,0.3396647]
[1764566939232,0.00079446,86080.0,86079.0,0.38148172]
[1764566939970,0.00079446,86080.0,86079.0,0.3396647]
[1764566941728,0.00159507,86080.0,86079.0,0.3396647]
[1764566942683,0.00159507,86080.0,86079.0,0.3386647]
[1764566942883,0.00159507,86080.0,86079.0,0.3426647]
[1764566944861,0.00159507,86080.0,86079.0,0.2538947]
[1764566945018,0.00159507,86080.0,86079.0,0.2465347]
[1764566945220,0.00159507,86080.0,86079.0,0.2538947]
[1764566945431,0.00159507,86080.0,86079.0,0.2528947]
[1764566945622,0.00159507,86080.0,86079.0,0.3490247]
[1764566945864,0.00159507,86080.0,86079.0,0.3460247]
[1764566946018,0.00159507,86080.0,86079.0,0.3470247]
[1764566946429,0.00159507,86080.0,86079.0,0.38877983]
[1764566946652,0.00159507,86080.0,86079.0,0.3470247]
[1764566947051,0.00159507,86080.0,86079.0,0.38877983]
[1764566947274,0.00159507,86080.0,86079.0,0.3470247]
[1764566947922,0.00159507,86080.0,86079.0,0.40978645]
[1764566948516,0.00159507,86080.0,86079.0,0.41078645]
[1764566948715,0.00159507,86080.0,86079.0,0.3470247]
[1764566949065,0.00159507,86080.0,86079.0,0.77534203]
[1764566949261,0.00159507,86080.0,86079.0,0.73654769]
[1764566950346,0.0004,86090.0,86089.0,0.2948407]
[1764566950689,0.00046415,86090.0,86089.0,0.38659435]
[1764566950853,0.00046415,86090.0,86089.0,0.43554435]
[1764566951149,0.00046415,86090.0,86089.0,0.44290435]
[1764566952295,0.00046415,86090.0,86089.0,0.44490435]
[1764566954494,0.00046415,86090.0,86089.0,0.43754435]
[1764566954642,0.00046415,86090.0,86089.0,0.33854771]
[1764566954842,0.00046415,86090.0,86089.0,0.34590771]
[1764566956093,0.00078431,86090.0,86089.0,0.34590771]
[1764566956729,0.00078431,86090.0,86089.0,0.28959771]
[1764566956866,0.00078431,86090.0,86089.0,0.34828771]
[1764566958351,0.00078431,86090.0,86089.0,0.34092771]
[1764566958511,0.00078431,86090.0,86089.0,0.28223771]
[1764566959124,0.00078431,86090.0,86089.0,0.34092771]
[1764566966251,0.00078431,86090.0,86089.0,0.38257722]
[1764566968258,0.00078431,86090.0,86089.0,0.34092771]
[1764566969240,0.00078431,86090.0,86089.0,0.46599386]
[1764566969443,0.00078431,86090.0,86089.0,0.46399386]
[1764566969663,0.00078431,86090.0,86089.0,0.46499386]
[1764566969910,0.00078431,86090.0,86089.0,0.46999386]
[1764566970265,0.00078431,86090.0,86089.0,0.4074507]
[1764566971971,0.00078431,86090.0,86089.0,0.7304507]
[1764566973111,0.00078431,86090.0,86089.0,0.7304507]
[1764566973554,0.0002,86110.0,86109.0,0.23226375]
[1764566973746,0.0002,86110.0,86109.0,0.39037685]
[1764566973982,0.0002,86110.0,86109.0,0.35607375]
[1764566974218,0.0002,86110.0,86109.0,0.39771993]
[1764566974664,0.0002,86110.0,86109.0,0.35607375]
[1764566975070,0.0002,86110.0,86109.0,0.35907375]
[1764566976710,0.0002,86110.0,86109.0,0.68307375]
[1764566979095,0.00084013,86110.0,86109.0,0.68307375]
[1764566980697,0.00084013,86110.0,86109.0,0.67571375]
[1764566980921,0.00084013,86110.0,86109.0,0.36007375]
[1764566981660,0.00084013,86110.0,86109.0,0.40167543]
[1764566981872,0.00084013,86110.0,86109.0,0.36007375]
[1764566982071,0.00084013,86110.0,86109.0,0.40166589]
[1764566983136,0.00084013,86110.0,86109.0,0.35271375]
[1764566983347,0.00084013,86110.0,86109.0,0.36007375]
[1764566983790,0.00084013,86110.0,86109.0,0.35271375]
[1764566983993,0.00084013,86110.0,86109.0,0.36007375]
[1764566984635,0.00084013,86110.0,86109.0,0.35707375]
[1764566986873,0.00084013,86110.0,86109.0,0.34971375]
[1764566987231,0.00084013,86110.0,86109.0,0.35707375]
[1764566987639,0.00084013,86110.0,86109.0,0.35607375]
[1764566988106,0.00084013,86110.0,86109.0,0.36107375]
[1764566988300,0.00084013,86110.0,86109.0,0.35707375]
[1764566988507,0.00084013,86110.0,86109.0,0.36007375]
[1764566988932,0.00084013,86110.0,86109.0,0.36107375]
[1764566989347,0.17209799,86134.0,86129.0,0.01161049]
[1764566989546,0.01158807,86131.0,86129.0,0.01161049]
[1764566989771,0.01158807,86130.0,86129.0,0.01161049]
[1764566989973,0.01158807,86129.0,86127.0,0.01161076]
[1764566990178,0.01158807,86132.0,86130.0,0.01161035]
[1764566990519,0.01158807,86132.0,86130.0,0.24381516]
[1764566990714,0.00011826,86134.0,86131.0,0.24381287]
[1764566991053,0.01158807,86132.0,86131.0,0.24381287]
[1764566991258,0.00011826,86134.0,86131.0,0.01161022]
[1764566991963,0.01161008,86132.0,86128.0,0.01161062]
[1764566992168,0.01161008,86132.0,86129.0,0.01161049]
[1764566992169,0.02319815,86132.0,86129.0,0.01161049]
[1764566992325,0.01158807,86130.0,86129.0,0.01161049]
[1764566993230,0.00011826,86134.0,86131.0,0.24381199]
[1764566993425,0.01158807,86132.0,86131.0,0.24381199]
[1764566993648,0.01158807,86132.0,86131.0,0.01161022]
[1764566994462,0.00011826,86134.0,86131.0,0.04721022]
[1764566994838,0.01170633,86134.0,86131.0,0.04721022]
[1764566995054,0.01158807,86132.0,86131.0,0.04721022]
[1764566995267,0.24381215,86132.0,86124.0,0.24383404]
[1764566995470,0.24381215,86132.0,86127.0,0.01161076]
[1764566995471,0.00057594,86128.0,86127.0,0.01161076]
[1764566995673,0.01216401,86128.0,86127.0,0.01161076]
[1764566996505,0.00057594,86128.0,86127.0,0.10105076]
[1764567000663,0.00057594,86128.0,86127.0,0.10205076]
[1764567001482,0.00057594,86128.0,86127.0,0.001]
[1764567002063,0.04764401,86128.0,86127.0,0.001]
[1764567002518,0.09436401,86128.0,86127.0,0.001]
[1764567003150,0.25544055,86118.0,86115.0,0.02609]
[1764567003348,0.24385248,86118.0,86115.0,0.02609]
[1764567003547,0.01158807,86116.0,86115.0,0.02609]
[1764567003705,0.24385248,86118.0,86115.0,0.02609]